fUSD/lending_fUSD_20250523
["ID","MTS","AMOUNT","RATE_DAILY","PERIOD"]
[362141394,1748032480580,586.45,0.00042458,120]
[362141395,1748032480841,586.45,0.00042458,120]
[362141396,1748032481092,586.45,0.00042458,120]
[362141397,1748032481352,586.45,0.00042458,120]
[362141398,1748032481617,586.45,0.00042458,120]
[362141399,1748032481886,586.45,0.00042458,120]
[362141400,1748032482031,420.0,0.00042458,120]
[362141401,1748032482307,420.0,0.00042458,120]
[362141402,1748032482534,420.0,0.00042458,120]
[362141403,1748032482792,420.0,0.00042458,120]
[362141404,1748032483028,420.0,0.00042458,120]
[362141405,1748032483290,420.0,0.00042458,120]
[362141406,1748032483527,420.0,0.00042458,120]
[362141407,1748032483605,420.0,0.00042458,120]
[362141408,1748032483789,420.0,0.00042458,120]
[362141409,1748032483837,369.01397778,0.00042458,120]
[362141410,1748032484035,420.0,0.00042458,120]
[362141411,1748032484233,420.0,0.00042458,120]
[362141412,1748032484279,420.0,0.00042458,120]
[362141413,1748032484474,568.56338811,0.00042458,120]
[362141414,1748032484525,420.0,0.00042458,120]
[362141415,1748032484968,416.92,0.00042458,120]
[362141418,1748032496761,420.0,0.00042459,120]
[362141419,1748032497102,420.0,0.00042459,120]
[362141420,1748032497336,420.0,0.00042459,120]
[362141421,1748032497585,420.0,0.00042459,120]
[362141422,1748032497843,420.0,0.00042459,120]
[362141423,1748032498097,420.0,0.00042459,120]
[362141424,1748032498370,420.0,0.00042459,120]
[362141425,1748032499128,420.0,0.00042459,120]
[362141426,1748032499210,420.0,0.00042459,120]
[362141427,1748032499455,420.0,0.00042459,120]
[362141428,1748032499716,516.4,0.00042459,120]
[362141429,1748032514678,420.0,0.00042459,120]
[362141430,1748032514948,420.0,0.00042459,120]
[362141431,1748032515185,420.0,0.00042459,120]
[362141432,1748032515634,461.26,0.00042459,120]
[362141433,1748032520247,422.82,0.00042459,120]
[362141434,1748032525001,420.0,0.00042459,120]
[362141435,1748032525270,420.0,0.00042459,120]
[362141436,1748032525531,256.64,0.00042459,120]
[362141437,1748032535536,420.0,0.00042459,120]
[362141438,1748032535783,420.0,0.00042459,120]
[362141439,1748032536074,227.44,0.00042459,120]
[362141440,1748032538157,420.0,0.00042459,120]
[362141441,1748032538410,420.0,0.00042459,120]
[362141442,1748032538660,187.12586059,0.00042459,120]
[362141443,1748032540401,420.0,0.00042459,120]
[362141444,1748032540597,420.0,0.00042459,120]
[362141445,1748032540680,420.0,0.00042459,120]
[362141446,1748032540920,420.0,0.00042459,120]
[362141447,1748032541157,420.0,0.00042459,120]
[362141448,1748032541404,420.0,0.00042459,120]
[362141449,1748032541644,420.0,0.00042459,120]
[362141450,1748032541894,420.0,0.00042459,120]
[362141451,1748032542157,420.0,0.00042459,120]
[362141452,1748032542718,175.12,0.00042459,120]
[362141453,1748032544458,203.23,0.00042459,120]
[362141454,1748032547438,420.0,0.00042459,120]
[362141455,1748032547684,420.0,0.00042459,120]
[362141456,1748032547929,243.04,0.00042459,120]
[362141461,1748032558258,666.0,0.00042459,120]
[362141462,1748032558496,666.0,0.00042459,120]
[362141463,1748032558750,666.0,0.00042459,120]
[362141464,1748032558990,666.0,0.00042459,120]
[362141465,1748032559245,666.0,0.00042459,120]
[362141466,1748032559483,666.0,0.00042459,120]
[362141467,1748032559733,666.0,0.00042459,120]
[362141468,1748032559975,666.0,0.00042459,120]
[362141469,1748032560226,666.0,0.00042459,120]
[362141470,1748032560490,666.0,0.00042459,120]
[362141471,1748032560750,666.0,0.00042459,120]
[362141472,1748032561034,666.0,0.00042459,120]
[362141473,1748032561305,666.0,0.00042459,120]
[362141474,1748032561651,491.52,0.00042459,120]
[362141475,1748032577888,420.0,0.00042459,120]
[362141476,1748032578001,420.0,0.00042459,120]
[362141477,1748032578133,420.0,0.00042459,120]
[362141478,1748032578290,420.0,0.00042459,120]
[362141479,1748032578389,420.0,0.00042459,120]
[362141480,1748032578587,420.0,0.00042459,120]
[362141481,1748032578665,420.0,0.00042459,120]
[362141482,1748032578934,420.0,0.00042459,120]
[362141483,1748032579180,420.0,0.00042459,120]
[362141484,1748032579393,420.0,0.00042459,120]
[362141485,1748032579463,420.0,0.00042459,120]
[362141486,1748032579634,420.0,0.00042459,120]
[362141487,1748032579720,420.0,0.00042459,120]
[362141488,1748032579888,554.82,0.00042459,120]
[362141489,1748032580726,420.0,0.00042459,120]
[362141490,1748032580782,420.0,0.00042459,120]
[362141491,1748032580989,420.0,0.00042459,120]
[362141492,1748032581228,420.0,0.00042459,120]
[362141493,1748032581469,420.0,0.00042459,120]
[362141494,1748032581718,420.0,0.00042459,120]
[362141495,1748032581946,420.0,0.00042459,120]
[362141496,1748032582179,420.0,0.00042459,120]
[362141497,1748032582414,420.0,0.00042459,120]
[362141498,1748032583004,322.0,0.00042459,120]
[362141499,1748032583077,420.0,0.00042459,120]
[362141500,1748032583374,420.0,0.00042459,120]
[362141501,1748032583590,420.0,0.00042459,120]
[362141502,1748032583839,327.85615459,0.00042459,120]
[362141503,1748032589752,231.32751393,0.00042459,120]
[362141504,1748032589793,420.0,0.00042459,120]
[362141505,1748032590073,420.0,0.00042459,120]
[362141506,1748032590331,420.0,0.00042459,120]
[362141507,1748032590769,563.47,0.00042459,120]
[362141508,1748032594388,420.0,0.00042459,120]
[362141509,1748032594638,488.84883913,0.00042459,120]
[362141510,1748032600966,420.0,0.00042459,120]
[362141511,1748032601388,420.0,0.00042459,120]
[362141512,1748032601651,420.0,0.00042459,120]
[362141513,1748032601880,420.0,0.00042459,120]
[362141514,1748032602161,420.0,0.00042459,120]
[362141515,1748032602427,420.0,0.00042459,120]
[362141516,1748032602663,420.0,0.00042459,120]
[362141517,1748032602914,420.0,0.00042459,120]
[362141518,1748032603214,420.0,0.00042459,120]
[362141519,1748032603413,420.0,0.00042459,120]
[362141520,1748032603666,420.0,0.00042459,120]
[362141521,1748032604052,420.0,0.00042459,120]
[362141522,1748032604155,420.0,0.00042459,120]
[362141523,1748032604647,420.0,0.00042459,120]
[362141524,1748032604751,420.0,0.00042459,120]
[362141525,1748032604981,420.0,0.00042459,120]
[362141526,1748032605232,420.0,0.00042459,120]
[362141527,1748032605332,420.0,0.00042459,120]
[362141528,1748032605477,336.98,0.00042459,120]
[362141529,1748032605596,420.0,0.00042459,120]
[362141530,1748032605839,420.0,0.00042459,120]
[362141531,1748032606468,420.0,0.00042459,120]
[362141532,1748032606742,420.0,0.00042459,120]
[362141533,1748032607033,420.0,0.00042459,120]
[362141534,1748032607280,420.0,0.00042459,120]
[362141535,1748032607423,420.0,0.00042459,120]
[362141536,1748032607524,420.0,0.00042459,120]
[362141537,1748032607680,420.0,0.00042459,120]
[362141538,1748032607781,420.0,0.00042459,120]
[362141539,1748032607925,420.0,0.00042459,120]
[362141540,1748032608067,420.0,0.00042459,120]
[362141541,1748032608173,420.0,0.00042459,120]
[362141542,1748032608297,420.0,0.00042459,120]
[362141543,1748032608408,420.0,0.00042459,120]
[362141544,1748032608524,420.0,0.00042459,120]
[362141545,1748032608668,420.0,0.00042459,120]
[362141546,1748032608768,420.0,0.00042459,120]
[362141547,1748032608930,420.0,0.00042459,120]
[362141548,1748032609628,443.44,0.00042459,120]
[362141549,1748032624691,200.0,0.00042459,120]
[362141550,1748032625328,200.0,0.00042459,120]
[362141551,1748032627855,420.0,0.00042459,120]
[362141552,1748032628188,420.0,0.00042459,120]
[362141553,1748032628654,420.0,0.00042459,120]
[362141554,1748032628699,420.0,0.00042459,120]
[362141555,1748032628942,420.0,0.00042459,120]
[362141556,1748032629189,420.0,0.00042459,120]
[362141557,1748032629435,420.0,0.00042459,120]
[362141558,1748032629705,420.0,0.00042459,120]
[362141559,1748032645223,420.0,0.00042459,120]
[362141560,1748032645492,420.0,0.00042459,120]
[362141561,1748032645749,420.0,0.00042459,120]
[362141562,1748032645989,420.0,0.00042459,120]
[362141563,1748032646267,420.0,0.00042459,120]
[362141564,1748032646523,549.50650111,0.00042459,120]
[362141565,1748032648425,420.0,0.00042459,120]
[362141566,1748032648671,420.0,0.00042459,120]
[362141567,1748032649279,420.0,0.00042459,120]
[362141568,1748032649538,420.0,0.00042459,120]
[362141569,1748032649781,313.28031757,0.00042459,120]
[362141570,1748032674329,266.03,0.00042459,120]
[362141571,1748032676899,420.0,0.00042459,120]
[362141572,1748032677159,420.0,0.00042459,120]
[362141573,1748032677410,420.0,0.00042459,120]
[362141574,1748032677644,420.0,0.00042459,120]
[362141575,1748032678059,420.0,0.00042459,120]
[362141576,1748032678308,420.0,0.00042459,120]
[362141577,1748032678559,420.0,0.00042459,120]
[362141578,1748032678800,420.0,0.00042459,120]
[362141579,1748032679051,420.0,0.00042459,120]
[362141580,1748032679306,420.0,0.00042459,120]
[362141581,1748032679552,258.51,0.00042459,120]
[362141582,1748032683263,420.0,0.00042459,120]
[362141583,1748032683530,420.0,0.00042459,120]
[362141584,1748032683797,420.0,0.00042459,120]
[362141585,1748032684049,420.0,0.00042459,120]
[362141586,1748032684307,420.0,0.00042459,120]
[362141587,1748032684550,420.0,0.00042459,120]
[362141588,1748032684798,420.0,0.00042459,120]
[362141589,1748032685033,420.0,0.00042459,120]
[362141590,1748032685286,420.0,0.00042459,120]
[362141591,1748032685555,420.0,0.00042459,120]
[362141592,1748032685823,420.0,0.00042459,120]
[362141593,1748032686096,420.0,0.00042459,120]
[362141594,1748032686296,178.92,0.00042459,120]
[362141595,1748032689587,420.0,0.00042459,120]
[362141596,1748032689833,420.0,0.00042459,120]
[362141597,1748032690082,420.0,0.00042459,120]
[362141598,1748032690329,420.0,0.00042459,120]
[362141599,1748032690569,420.0,0.00042459,120]
[362141600,1748032690828,420.0,0.00042459,120]
[362141601,1748032691314,420.0,0.00042459,120]
[362141602,1748032691361,420.0,0.00042459,120]
[362141603,1748032691571,420.0,0.00042459,120]
[362141604,1748032691820,420.0,0.00042459,120]
[362141605,1748032692067,420.0,0.00042459,120]
[362141606,1748032692390,420.0,0.00042459,120]
[362141607,1748032692635,558.48,0.00042459,120]
[362141608,1748032697838,420.0,0.00042459,120]
[362141609,1748032697933,420.0,0.00042459,120]
[362141610,1748032698181,420.0,0.00042459,120]
[362141611,1748032698437,420.0,0.00042459,120]
[362141612,1748032698759,420.0,0.00042459,120]
[362141613,1748032699021,420.0,0.00042459,120]
[362141614,1748032699288,420.0,0.00042459,120]
[362141615,1748032699569,420.0,0.00042459,120]
[362141616,1748032699824,420.0,0.00042459,120]
[362141617,1748032700461,420.0,0.00042459,120]
[362141618,1748032700770,420.0,0.00042459,120]
[362141619,1748032701025,420.0,0.00042459,120]
[362141620,1748032701272,420.0,0.00042459,120]
[362141621,1748032701535,420.0,0.00042459,120]
[362141622,1748032701795,420.0,0.00042459,120]
[362141623,1748032702047,420.0,0.00042459,120]
[362141624,1748032702284,420.0,0.00042459,120]
[362141625,1748032702535,333.84,0.00042459,120]
[362141626,1748032744505,523.84190193,0.00042459,120]
[362141627,1748032746780,420.0,0.00042459,120]
[362141628,1748032747027,420.0,0.00042459,120]
[362141629,1748032747274,420.0,0.00042459,120]
[362141630,1748032747538,420.0,0.00042459,120]
[362141631,1748032747788,420.0,0.00042459,120]
[362141632,1748032748028,420.0,0.00042459,120]
[362141633,1748032748291,420.0,0.00042459,120]
[362141634,1748032749214,197.00828707,0.00042459,120]
[362141635,1748032775952,467.91949869,0.00042459,120]
[362141636,1748032812348,420.0,0.00042457,120]
[362141637,1748032812633,420.0,0.00042457,120]
[362141638,1748032812870,461.50644627,0.00042457,120]
[362141639,1748032835505,420.0,0.00042457,120]
[362141640,1748032835798,420.0,0.00042457,120]
[362141641,1748032836061,420.0,0.00042457,120]
[362141642,1748032836326,420.0,0.00042457,120]
[362141643,1748032836662,420.0,0.00042457,120]
[362141644,1748032836902,420.0,0.00042457,120]
[362141645,1748032837156,420.0,0.00042457,120]
[362141646,1748032837398,454.32473445,0.00042457,120]
[362141647,1748032838298,-945.507435,0.00019848,2]
[362141648,1748032838321,-200.0,0.00019899,2]
[362141649,1748032838343,-250.0,0.00019899,2]
[362141650,1748032838366,-200.0,0.00019949,2]
[362141651,1748032838389,-1200.0,0.00019998,2]
[362141652,1748032838412,-191.0,0.00019999,2]
[362141653,1748032838435,-300.0,0.00019999,2]
[362141654,1748032838457,-6072.4087387,0.0002,2]
[362141655,1748032838480,-4000.0,0.0002,4]
[362141656,1748032842883,254.58,0.00042457,120]
[362141657,1748032844885,420.0,0.00042457,120]
[362141658,1748032845166,420.0,0.00042457,120]
[362141659,1748032845429,420.0,0.00042457,120]
[362141660,1748032845706,198.7265455,0.00042457,120]
[362141661,1748032867334,151.8,0.00013699,2]
[362141668,1748032888340,420.0,0.00042457,120]
[362141669,1748032888586,420.0,0.00042457,120]
[362141670,1748032888866,420.0,0.00042457,120]
[362141671,1748032889111,420.0,0.00042457,120]
[362141672,1748032889396,420.0,0.00042457,120]
[362141673,1748032889985,420.0,0.00042457,120]
[362141674,1748032890251,420.0,0.00042457,120]
[362141675,1748032890495,420.0,0.00042457,120]
[362141676,1748032890861,420.0,0.00042457,120]
[362141677,1748032891822,420.0,0.00042457,120]
[362141678,1748032892386,157.86987223,0.00042457,120]
[362141679,1748032899083,420.0,0.00042457,120]
[362141680,1748032899311,420.0,0.00042457,120]
[362141681,1748032899355,420.0,0.00042457,120]
[362141682,1748032899625,420.0,0.00042457,120]
[362141683,1748032899872,420.0,0.00042457,120]
[362141684,1748032899914,420.0,0.00042457,120]
[362141685,1748032900144,245.12,0.00042457,120]
[362141686,1748032900188,170.27,0.00042457,120]
[362141687,1748032919412,420.0,0.00042457,120]
[362141688,1748032919660,527.45582381,0.00042457,120]
[362141689,1748032925598,771.91551981,0.00019497,2]
[362141690,1748032925899,771.91551982,0.00019861,2]
[362141691,1748032937449,420.0,0.00042457,120]
[362141692,1748032937733,420.0,0.00042457,120]
[362141693,1748032937994,283.22,0.00042457,120]
[362141694,1748033018011,493.60452134,0.00042457,120]
[362141695,1748033038074,429.84090244,0.00042457,120]
[362141696,1748033051539,420.0,0.00042457,120]
[362141697,1748033055652,420.0,0.00042457,120]
[362141698,1748033057223,455.61,0.00042457,120]
[362141699,1748033058590,204.84107877,0.00042457,120]
[362141700,1748033063984,420.0,0.00042457,120]
[362141701,1748033064692,420.0,0.00042457,120]
[362141703,1748033081936,420.0,0.00042457,120]
[362141704,1748033088976,384.52655559,0.00042457,120]
[362141705,1748033091095,420.0,0.00042457,120]
[362141706,1748033097054,422.90375572,0.00042457,120]
[362141707,1748033099022,538.77048822,0.00042457,120]
[362141708,1748033128078,420.0,0.00042457,120]
[362141709,1748033130289,167.48,0.00017831,2]
[362141710,1748033138775,421.45603489,0.00042457,120]
[362141711,1748033142584,420.0,0.00042457,120]
[362141713,1748033145911,420.0,0.00042457,120]
[362141715,1748033162095,420.0,0.00042457,120]
[362141716,1748033165485,420.0,0.00042457,120]
[362141717,1748033179054,420.0,0.00042457,120]
[362141718,1748033179305,353.25810959,0.00042457,120]
[362141720,1748033368136,-561.06,0.00019563,2]
[362141721,1748033368156,-200.0,0.00019816,2]
[362141722,1748033368177,-250.0,0.00019816,2]
[362141723,1748033368198,-200.0,0.00020069,2]
[362141724,1748033368218,-151.8,0.00020187,2]
[362141725,1748033368240,-1497.32,0.00020318,2]
[362141726,1748033368263,-254.09635,0.0002057,2]
[362141727,1748033368284,-211.0,0.00020685,2]
[362141728,1748033368305,-254.09636,0.000212,2]
[362141729,1748033368326,-500.0,0.00021233,2]
[362141730,1748033368348,-191.0,0.00021369,2]
[362141731,1748033368368,-200.0,0.00021519,2]
[362141732,1748033368388,-250.0,0.00021519,2]
[362141733,1748033368408,-586.0,0.00021617,2]
[362141734,1748033368428,-254.09636,0.0002182,2]
[362141735,1748033368449,-1200.0,0.00022032,2]
[362141736,1748033368470,-200.0,0.00022033,2]
[362141737,1748033368490,-771.4922132,0.00022054,2]
[362141738,1748033368510,-200.0,0.00022076,2]
[362141739,1748033368533,-250.0,0.00022076,2]
[362141740,1748033368553,-237.40404271,0.00022192,2]
[362141742,1748033432029,-1481.53,0.00020592,2]
[362141743,1748033432039,-200.0,0.00021392,2]
[362141744,1748033432049,-250.0,0.00021392,2]
[362141745,1748033432059,-200.0,0.00021916,2]
[362141746,1748033432068,-262.59595729,0.00022192,2]
[362141747,1748033432077,-164.3005,0.00022192,2]
[362141748,1748033432087,-150.0,0.00022244,2]
[362141749,1748033432096,-907.19,0.00022263,2]
[362141750,1748033432105,-167.48,0.00022289,2]
[362141751,1748033432115,-250.0,0.00022306,2]
[362141752,1748033432124,-1200.0,0.00022319,2]
[362141753,1748033432133,-9388.87,0.0002232,2]
[362141754,1748033432143,-1000.0,0.00022321,2]
[362141755,1748033432152,-1642.06,0.00022367,2]
[362141756,1748033432162,-500.0,0.00022393,2]
[362141757,1748033432171,-150.0,0.0002243,7]
[362141758,1748033432180,-300.0,0.0002243,2]
[362141759,1748033432190,-150.0,0.00022443,2]
[362141760,1748033432199,-570.13,0.00022459,2]
[362141761,1748033432208,-800.56,0.00022505,2]
[362141762,1748033432218,-2442.35,0.00022539,2]
[362141763,1748033432227,-901.85,0.0002255,2]
[362141764,1748033432237,-165.98,0.00022595,2]
[362141765,1748033432247,-1500.0,0.00022637,2]
[362141766,1748033432256,-200.0,0.00022652,2]
[362141767,1748033432265,-250.0,0.00022652,2]
[362141768,1748033432275,-241.59771752,0.00022652,2]
[362141769,1748033432287,-5540.74007687,0.00022652,2]
[362141770,1748033432296,-23900.0,0.00022654,2]
[362141771,1748033432306,-9393.30537531,0.00022665,2]
[362141773,1748033432315,-500.7668371,0.00022673,2]
[362141775,1748033432325,-500.0,0.00022673,2]
[362141776,1748033432335,-555.61032391,0.00022674,2]
[362141777,1748033432345,-14111.88,0.00022675,2]
[362141778,1748033432355,-1243.96,0.00022679,2]
[362141780,1748033432368,-159.61906468,0.000227,2]
[362141782,1748033432377,-191.0,0.00022739,2]
[362141784,1748033432386,-1481.53,0.00022856,2]
[362141786,1748033432396,-385.41397144,0.000229,8]
[362141788,1748033432407,-960.09,0.00022931,2]
[362141790,1748033432416,-2038.08,0.00022946,2]
[362141792,1748033432426,-164.36,0.00022982,2]
[362141794,1748033432437,-561.06,0.00022988,2]
[362141796,1748033432447,-200.0,0.00023141,2]
[362141797,1748033432457,-570.13,0.00023301,2]
[362141799,1748033432466,-166.18,0.00023321,2]
[362141801,1748033432475,-385.41397143,0.00023555,9]
[362141803,1748033432485,-211.0,0.00023616,2]
[362141805,1748033432495,-591.17965712,0.0002365,2]
[362141807,1748033432505,-270.9274,0.00023749,2]
[362141809,1748033432514,-1368.0314,0.00023749,2]
[362141811,1748033432524,-1509.888,0.00023749,2]
[362141813,1748033432532,-5307.5955,0.00023749,2]
[362141815,1748033432542,-226.988,0.00023749,2]
[362141817,1748033432551,-500.0,0.00023828,2]
[362141819,1748033432561,-165.26,0.00023836,2]
[362141821,1748033432570,-500.0,0.00023838,2]
[362141823,1748033432579,-150.0,0.00023838,2]
[362141825,1748033432589,-150.0,0.00023838,2]
[362141827,1748033432598,-150.0,0.00023838,2]
[362141829,1748033432607,-150.0,0.00023849,2]
[362141831,1748033432616,-150.0,0.00023849,2]
[362141833,1748033432626,-150.0,0.00023849,2]
[362141834,1748033432635,-3897.09806464,0.00023849,2]
[362141836,1748033432644,-4956.33947435,0.00023849,2]
[362141838,1748033432654,-16622.12825008,0.00023849,2]
[362141841,1748033432666,-6667.37852127,0.00023849,2]
[362141843,1748033432676,-1719.63355749,0.00023849,2]
[362141845,1748033432685,-150.0,0.00023849,2]
[362141847,1748033432695,-728.49433218,0.00023849,2]
[362141849,1748033432711,-6528.87799816,0.00023849,2]
[362141851,1748033432720,-500.0,0.00023865,2]
[362141853,1748033432729,-150.0,0.00023865,2]
[362141855,1748033432738,-150.0,0.00023865,2]
[362141857,1748033432749,-500.0,0.00023893,2]
[362141859,1748033432759,-200.0,0.00023893,2]
[362141861,1748033432767,-150.0,0.00023893,2]
[362141863,1748033432777,-500.0,0.0002392,2]
[362141865,1748033432786,-150.0,0.0002392,2]
[362141867,1748033432795,-500.0,0.0002394,2]
[362141869,1748033432805,-500.0,0.0002394,2]
[362141871,1748033432814,-500.0,0.00023948,2]
[362141872,1748033432823,-150.0,0.00023948,2]
[362141874,1748033432833,-500.0,0.0002395,2]
[362141876,1748033432843,-7788.86925358,0.0002395,2]
[362141877,1748033432852,-161.47992795,0.00023962,2]
[362141878,1748033432861,-500.0,0.00023962,2]
[362141879,1748033432871,-500.0,0.00023967,2]
[362141880,1748033432880,-500.0,0.00023967,2]
[362141881,1748033432889,-500.0,0.00023975,2]
[362141882,1748033432899,-250.0,0.00023975,2]
[362141883,1748033432908,-500.0,0.00023995,2]
[362141884,1748033432918,-278.59998804,0.00023995,2]
[362141885,1748033432927,-1084.25,0.00024,2]
[362141886,1748033432936,-500.0,0.00024002,2]
[362141887,1748033432945,-500.0,0.00024022,2]
[362141888,1748033432955,-500.0,0.0002403,2]
[362141889,1748033432964,-500.0,0.0002405,2]
[362141890,1748033432973,-496.30309611,0.00024057,2]
[362141892,1748033432982,-500.0,0.00024077,2]
[362141894,1748033432991,-500.0,0.00024104,2]
[362141896,1748033433001,-191.0,0.00024109,2]
[362141898,1748033433010,-367.07207053,0.00024132,2]
[362141900,1748033433019,-570.13,0.00024144,2]
[362141902,1748033433028,-385.41397143,0.0002421,10]
[362141904,1748033433037,-1528.01754524,0.0002425,2]
[362141906,1748033433048,-3890.45928066,0.0002425,2]
[362142396,1748033438137,-533.843,0.0002425,2]
[362142402,1748033438192,-4050.8055094,0.0002425,2]
[362142404,1748033438201,-154.07195738,0.0002425,2]
[362142406,1748033438210,-151.94282416,0.0002425,2]
[362142408,1748033438220,-150.000001,0.0002425,2]
[362142410,1748033438230,-150.0,0.0002425,2]
[362142412,1748033438239,-150.0,0.0002425,2]
[362142414,1748033438248,-150.0,0.0002425,2]
[362142417,1748033438261,-200.0,0.00024277,2]
[362142418,1748033438271,-150.0,0.00024277,2]
[362142420,1748033438281,-208.11023825,0.00024277,2]
[362142423,1748033438291,-187.72981534,0.00024305,2]
[362142424,1748033438301,-1680.0,0.00024359,2]
[362142426,1748033438311,-1000.0,0.00024376,2]
[362142428,1748033438321,-778.61479223,0.00024498,2]
[362142430,1748033438330,-1000.0,0.0002451,2]
[362142433,1748033438341,-936.0,0.0002451,2]
[362142434,1748033438350,-1310.0,0.0002451,2]
[362142436,1748033438361,-631.0,0.0002451,2]
[362142438,1748033438372,-799.0,0.0002451,2]
[362142440,1748033438381,-1260.0,0.0002451,2]
[362142442,1748033438391,-586.0,0.0002451,2]
[362142443,1748033438400,-1461.0,0.0002451,2]
[362142445,1748033438410,-921.0,0.0002451,2]
[362142448,1748033438421,-554.0,0.0002451,2]
[362142451,1748033438430,-1000.0,0.000246,2]
[362142454,1748033438442,-847.61624913,0.000246,4]
[362142456,1748033438451,-2500.0,0.000246,2]
[362142458,1748033438461,-1000.0,0.00024658,2]
[362142460,1748033438470,-500.0,0.00024673,2]
[362142462,1748033438479,-320.69334249,0.00024673,2]
[362142464,1748033438488,-200.02665242,0.00024699,2]
[362142466,1748033438498,-216.56144105,0.00024699,2]
[362142468,1748033438508,-269.73930254,0.00024699,2]
[362142470,1748033438517,-258.08711041,0.00024699,2]
[362142472,1748033438527,-170.16704255,0.00024699,2]
[362142473,1748033438536,-575.8505,0.000247,2]
[362142475,1748033438545,-35955.1194,0.000247,2]
[362142478,1748033438554,-60564.334,0.000247,2]
[362142479,1748033438564,-7788.86925349,0.00024722,2]
[362142480,1748033438573,-6838.0,0.0002473,2]
[362142481,1748033438582,-843.0,0.0002473,2]
[362142482,1748033438591,-154.0,0.0002473,2]
[362142483,1748033438601,-881.0,0.0002473,2]
[362142484,1748033438611,-4052.0,0.0002473,2]
[362142485,1748033438621,-1155.164,0.00024765,8]
[362142486,1748033438630,-184.78802532,0.00024766,8]
[362142487,1748033438640,-385.41397143,0.00024866,12]
[362142488,1748033438649,-15591.54296268,0.00024893,2]
[362142489,1748033438659,-1500.0,0.00024924,2]
[362142490,1748033438669,-570.13,0.00024986,2]
[362142491,1748033438680,-1000.0,0.00025111,2]
[362142493,1748033438689,-1481.53,0.0002512,2]
[362142495,1748033438698,-363.92,0.00025221,2]
[362142497,1748033438708,-6659.58236311,0.00025303,2]
[362142499,1748033438717,-16114.2278355,0.00025336,3]
[362142501,1748033438727,-19564.17648074,0.00025346,2]
[362142503,1748033438736,-150.0,0.00025446,2]
[362142505,1748033438745,-150.0,0.00025446,2]
[362142507,1748033438755,-150.0,0.00025446,2]
[362142509,1748033438764,-1077.38703047,0.00025446,2]
[362142510,1748033438773,-7480.15920153,0.00025446,2]